fUST/lending_fUST_20250626
["ID","MTS","AMOUNT","RATE_DAILY","PERIOD"]
[367789008,1750931447294,-460.0,0.00016986,2]
[367789009,1750931447304,-579.9473673,0.00016986,2]
[367789012,1750931447313,-460.0,0.00016986,2]
[367789014,1750931447323,-505.06064414,0.00016986,2]
[367789016,1750931447333,-460.0,0.00016986,2]
[367789018,1750931447342,-460.0,0.00016986,2]
[367789020,1750931447351,-801.14,0.00016986,2]
[367789022,1750931447360,-460.0,0.00016986,2]
[367789024,1750931447369,-492.26,0.00016986,2]
[367789026,1750931447379,-410.87111296,0.00016986,2]
[367789028,1750931447388,-460.0,0.00016986,2]
[367789030,1750931447399,-460.0,0.00016986,2]
[367789031,1750931447408,-460.0,0.00016986,2]
[367789034,1750931447418,-460.0,0.00016986,2]
[367789036,1750931447427,-460.0,0.00016986,2]
[367789038,1750931447436,-177.55898411,0.00016986,2]
[367789040,1750931447446,-460.0,0.00016986,2]
[367789042,1750931447457,-1366.28,0.00016986,2]
[367789044,1750931447466,-1780.45,0.00016986,2]
[367789046,1750931447475,-460.0,0.00016986,2]
[367789048,1750931447484,-225.41210402,0.00016986,2]
[367789050,1750931447494,-460.0,0.00016986,2]
[367789052,1750931447503,-460.0,0.00016986,2]
[367789054,1750931447512,-460.0,0.00016986,2]
[367789056,1750931447522,-460.0,0.00016986,2]
[367789058,1750931447530,-460.0,0.00016986,2]
[367789059,1750931447540,-460.0,0.00016986,2]
[367789061,1750931447551,-460.0,0.00016986,2]
[367789063,1750931447560,-460.0,0.00016986,2]
[367789066,1750931447570,-587.64,0.00016986,2]
[367789067,1750931447579,-460.0,0.00016986,2]
[367789069,1750931447588,-460.0,0.00016986,2]
[367789072,1750931447598,-460.0,0.00016986,2]
[367789073,1750931447607,-460.0,0.00016986,2]
[367789075,1750931447616,-460.0,0.00016986,2]
[367789077,1750931447626,-460.0,0.00016986,2]
[367789079,1750931447635,-460.0,0.00016986,2]
[367789082,1750931447645,-739.92,0.00016986,2]
[367789083,1750931447654,-460.0,0.00016986,2]
[367789085,1750931447663,-460.0,0.00016986,2]
[367789087,1750931447672,-460.0,0.00016986,2]
[367789090,1750931447682,-460.0,0.00016986,2]
[367789092,1750931447692,-463.56,0.00016986,2]
[367789093,1750931447701,-460.0,0.00016986,2]
[367789095,1750931447710,-460.0,0.00016986,2]
[367789097,1750931447719,-460.0,0.00016986,2]
[367789099,1750931447729,-460.0,0.00016986,2]
[367789102,1750931447738,-460.0,0.00016986,2]
[367789104,1750931447748,-460.0,0.00016986,2]
[367789105,1750931447757,-460.0,0.00016986,2]
[367789107,1750931447766,-460.0,0.00016986,2]
[367789109,1750931447776,-944.31,0.00016986,2]
[367789111,1750931447785,-1906.58,0.00016986,2]
[367789113,1750931447794,-563.27,0.00016986,2]
[367789115,1750931447804,-460.0,0.00016986,2]
[367789117,1750931447813,-2845.9,0.00016986,2]
[367789120,1750931447823,-460.0,0.00016986,2]
[367789121,1750931447832,-460.0,0.00016986,2]
[367789123,1750931447841,-460.0,0.00016986,2]
[367789125,1750931447850,-460.0,0.00016986,2]
[367789127,1750931447859,-460.0,0.00016986,2]
[367789131,1750931447881,-956.87,0.00016986,2]
[367789133,1750931447890,-460.0,0.00016986,2]
[367789134,1750931447899,-460.0,0.00016986,2]
[367789136,1750931447909,-2288.17,0.00016986,2]
[367789138,1750931447918,-460.0,0.00016986,2]
[367789140,1750931447928,-542.26144731,0.00016986,2]
[367789142,1750931447937,-451.70702414,0.00016986,2]
[367789144,1750931447946,-580.79,0.00016986,2]
[367789146,1750931447956,-151.0,0.00016986,2]
[367789148,1750931447965,-460.0,0.00016986,2]
[367789150,1750931447974,-460.0,0.00016986,2]
[367789152,1750931447983,-460.0,0.00016986,2]
[367789154,1750931447993,-1198.56,0.00016986,2]
[367789156,1750931448002,-336.418142,0.00016986,2]
[367789158,1750931448012,-195.25392168,0.00016986,2]
[367789160,1750931448021,-336.418142,0.00016986,2]
[367789162,1750931448030,-460.0,0.00016986,2]
[367789164,1750931448040,-1231.48,0.00016986,2]
[367789166,1750931448049,-460.0,0.00016986,2]
[367789168,1750931448059,-460.0,0.00016986,2]
[367789170,1750931448068,-460.0,0.00016986,2]
[367789172,1750931448078,-179.67,0.00016986,2]
[367789174,1750931448087,-460.0,0.00016986,2]
[367789175,1750931448097,-194.646327,0.00016986,2]
[367789178,1750931448107,-460.0,0.00016986,2]
[367789179,1750931448116,-194.646327,0.00016986,2]
[367789182,1750931448126,-1166.94,0.00016986,2]
[367789183,1750931448136,-883.45,0.00016986,2]
[367789185,1750931448146,-460.0,0.00016986,2]
[367789187,1750931448158,-912.34,0.00016986,2]
[367789190,1750931448168,-460.0,0.00016986,2]
[367789191,1750931448177,-773.09,0.00016986,2]
[367789193,1750931448186,-151.0,0.00016986,2]
[367789195,1750931448198,-465.70957867,0.00016986,2]
[367789197,1750931448209,-460.0,0.00016986,2]
[367789199,1750931448219,-151.0,0.00016986,2]
[367789201,1750931448232,-460.0,0.00016986,2]
[367789203,1750931448242,-460.0,0.00016986,2]
[367789205,1750931448251,-460.0,0.00016986,2]
[367789207,1750931448260,-472.03175633,0.00016986,2]
[367789209,1750931448270,-460.0,0.00016986,2]
[367789211,1750931448279,-460.0,0.00016986,2]
[367789213,1750931448289,-460.0,0.00016986,2]
[367789215,1750931448298,-460.0,0.00016986,2]
[367789217,1750931448308,-460.0,0.00016986,2]
[367789219,1750931448318,-460.0,0.00016986,2]
[367789221,1750931448327,-460.0,0.00016986,2]
[367789223,1750931448337,-460.0,0.00016986,2]
[367789225,1750931448346,-460.0,0.00016986,2]
[367789227,1750931448355,-460.0,0.00016986,2]
[367789229,1750931448365,-460.0,0.00016986,2]
[367789231,1750931448374,-460.0,0.00016986,2]
[367789233,1750931448383,-2940.97,0.00016986,2]
[367789235,1750931448392,-1025.01,0.00016986,2]
[367789236,1750931448402,-460.0,0.00016986,2]
[367789238,1750931448411,-838.22,0.00016986,2]
[367789240,1750931448421,-460.0,0.00016986,2]
[367789242,1750931448431,-460.0,0.00016986,2]
[367789244,1750931448440,-460.0,0.00016986,2]
[367789246,1750931448449,-472.36,0.00016986,2]
[367789248,1750931448459,-460.0,0.00016986,2]
[367789250,1750931448468,-151.0,0.00016986,2]
[367789252,1750931448477,-460.0,0.00016986,2]
[367789254,1750931448487,-460.0,0.00016986,2]
[367789256,1750931448496,-460.0,0.00016986,2]
[367789258,1750931448506,-460.0,0.00016986,2]
[367789260,1750931448515,-460.0,0.00016986,2]
[367789262,1750931448524,-151.0,0.00016986,2]
[367789264,1750931448533,-460.0,0.00016986,2]
[367789265,1750931448542,-1994.94775522,0.00017,2]
[367789267,1750931448551,-1527.0,0.00017013,2]
[367789269,1750931448561,-1875.0,0.00017013,2]
[367789271,1750931448571,-1527.0,0.00017041,2]
[367789273,1750931448580,-1875.0,0.00017041,2]
[367789275,1750931448589,-1529.02021361,0.00017068,2]
[367789277,1750931448599,-1875.10000001,0.00017068,2]
[367789279,1750931448609,-926.79199313,0.0001716,2]
[367789281,1750931448618,-2550.87992384,0.00017176,2]
[367789283,1750931448627,-1303.99,0.00017229,2]
[367789285,1750931448637,-460.0,0.0001723,2]
[367789288,1750931448647,-151.0,0.0001723,2]
[367789289,1750931448656,-176.214753,0.0001723,2]
[367789291,1750931448665,-176.214753,0.0001723,2]
[367789293,1750931448676,-151.0,0.0001723,2]
[367789295,1750931448686,-151.0,0.0001723,2]
[367789297,1750931448695,-151.0,0.00017259,2]
[367789299,1750931448705,-151.0,0.00017259,2]
[367789301,1750931448714,-151.0,0.00017259,2]
[367789303,1750931448724,-151.0,0.00017259,2]
[367789305,1750931448733,-151.0,0.00017259,2]
[367789307,1750931448743,-294.877351,0.00017259,2]
[367789309,1750931448753,-294.877351,0.00017259,2]
[367789311,1750931448762,-151.0,0.00017259,2]
[367789313,1750931448772,-151.0,0.00017259,2]
[367789315,1750931448781,-1303.99,0.00017259,2]
[367789317,1750931448790,-460.0,0.0001726,2]
[367789319,1750931448800,-460.0,0.0001726,2]
[367789321,1750931448809,-460.0,0.0001726,2]
[367789323,1750931448818,-307.77,0.0001726,2]
[367789325,1750931448827,-497.77,0.0001726,2]
[367789327,1750931448837,-460.0,0.0001726,2]
[367789329,1750931448846,-460.0,0.0001726,2]
[367789331,1750931448856,-1666.97,0.0001726,2]
[367789333,1750931448864,-460.0,0.0001726,2]
[367789334,1750931448873,-460.0,0.0001726,2]
[367789336,1750931448884,-460.0,0.0001726,2]
[367789338,1750931448894,-460.0,0.0001726,2]
[367789340,1750931448903,-460.0,0.0001726,2]
[367789342,1750931448913,-460.0,0.0001726,2]
[367789344,1750931448923,-460.0,0.0001726,2]
[367789346,1750931448932,-460.0,0.0001726,2]
[367789348,1750931448941,-460.0,0.0001726,2]
[367789350,1750931448950,-460.0,0.0001726,2]
[367789352,1750931448960,-460.0,0.0001726,2]
[367789354,1750931448970,-571.76,0.0001726,2]
[367789356,1750931448979,-460.0,0.0001726,2]
[367789358,1750931448988,-460.0,0.0001726,2]
[367789360,1750931448998,-460.0,0.0001726,2]
[367789362,1750931449008,-460.0,0.0001726,2]
[367789364,1750931449018,-594.21,0.0001726,2]
[367789366,1750931449027,-460.0,0.0001726,2]
[367789368,1750931449036,-151.0,0.0001726,2]
[367789370,1750931449046,-460.0,0.0001726,2]
[367789372,1750931449055,-151.0,0.0001726,2]
[367789374,1750931449064,-460.0,0.0001726,2]
[367789376,1750931449074,-206.08478,0.0001726,2]
[367789378,1750931449083,-151.598276,0.0001726,2]
[367789380,1750931449093,-233.259426,0.0001726,2]
[367789382,1750931449103,-460.0,0.0001726,2]
[367789384,1750931449112,-460.0,0.0001726,2]
[367789385,1750931449122,-460.0,0.0001726,2]
[367789387,1750931449133,-294.877351,0.0001726,2]
[367789389,1750931449143,-294.877351,0.0001726,2]
[367789391,1750931449156,-460.0,0.0001726,2]
[367789394,1750931449166,-460.0,0.0001726,2]
[367789395,1750931449176,-460.0,0.0001726,2]
[367789397,1750931449186,-151.0,0.0001726,2]
[367789400,1750931449198,-849.82,0.0001726,2]
[367789401,1750931449208,-252.11651,0.0001726,2]
[367789403,1750931449218,-460.0,0.0001726,2]
[367789405,1750931449228,-445.44968143,0.0001726,2]
[367789407,1750931449237,-460.0,0.0001726,2]
[367789409,1750931449246,-460.0,0.0001726,2]
[367789411,1750931449256,-460.0,0.0001726,2]
[367789413,1750931449265,-460.0,0.0001726,2]
[367789415,1750931449275,-460.0,0.0001726,2]
[367789417,1750931449284,-460.0,0.0001726,2]
[367789419,1750931449294,-460.0,0.0001726,2]
[367789421,1750931449303,-460.0,0.0001726,2]
[367789423,1750931449312,-151.0,0.0001726,2]
[367789425,1750931449322,-460.0,0.0001726,2]
[367789427,1750931449331,-460.0,0.0001726,2]
[367789429,1750931449340,-460.0,0.0001726,2]
[367789431,1750931449349,-1141.75,0.0001726,2]
[367789443,1750931449468,-460.0,0.0001726,2]
[367789445,1750931449479,-490.45590058,0.0001726,2]
[367789447,1750931449488,-460.0,0.0001726,2]
[367789449,1750931449497,-460.0,0.0001726,2]
[367789451,1750931449506,-460.0,0.0001726,2]
[367789453,1750931449515,-460.0,0.0001726,2]
[367789455,1750931449524,-460.0,0.0001726,2]
[367789457,1750931449535,-460.0,0.0001726,2]
[367789459,1750931449544,-460.0,0.0001726,2]
[367789461,1750931449554,-460.0,0.0001726,2]
[367789463,1750931449563,-460.0,0.0001726,2]
[367789465,1750931449571,-460.0,0.0001726,2]
[367789467,1750931449581,-460.0,0.0001726,2]
[367789469,1750931449590,-801.14,0.0001726,2]
[367789471,1750931449599,-460.0,0.0001726,2]
[367789472,1750931449608,-492.26,0.0001726,2]
[367789474,1750931449618,-460.0,0.0001726,2]
[367789476,1750931449627,-460.0,0.0001726,2]
[367789478,1750931449636,-460.0,0.0001726,2]
[367789480,1750931449645,-230.10957395,0.0001726,2]
[367789482,1750931449654,-460.0,0.0001726,2]
[367789484,1750931449664,-460.0,0.0001726,2]
[367789486,1750931449673,-1366.28,0.0001726,2]
[367789488,1750931449683,-1780.45,0.0001726,2]
[367789490,1750931449692,-460.0,0.0001726,2]
[367789492,1750931449703,-460.0,0.0001726,2]
[367789494,1750931449712,-460.0,0.0001726,2]
[367789496,1750931449721,-460.0,0.0001726,2]
[367789498,1750931449730,-460.0,0.0001726,2]
[367789500,1750931449740,-218.53,0.0001726,2]
[367789502,1750931449749,-460.0,0.0001726,2]
[367789504,1750931449758,-587.64,0.0001726,2]
[367789506,1750931449767,-460.0,0.0001726,2]
[367789508,1750931449777,-460.0,0.0001726,2]
[367789510,1750931449786,-460.0,0.0001726,2]
[367789511,1750931449795,-460.0,0.0001726,2]
[367789513,1750931449805,-460.0,0.0001726,2]
[367789515,1750931449815,-460.0,0.0001726,2]
[367789517,1750931449825,-460.0,0.0001726,2]
[367789519,1750931449834,-460.0,0.0001726,2]
[367789521,1750931449844,-739.92,0.0001726,2]
[367789523,1750931449853,-460.0,0.0001726,2]
[367789525,1750931449863,-460.0,0.0001726,2]
[367789527,1750931449872,-460.0,0.0001726,2]
[367789529,1750931449882,-460.0,0.0001726,2]
[367789531,1750931449891,-463.56,0.0001726,2]
[367789533,1750931449900,-460.0,0.0001726,2]
[367789535,1750931449909,-460.0,0.0001726,2]
[367789537,1750931449919,-180.44949262,0.0001726,2]
[367789539,1750931449927,-245.9012214,0.0001726,2]
[367789541,1750931449936,-460.0,0.0001726,2]
[367789543,1750931449945,-460.0,0.0001726,2]
[367789545,1750931449955,-460.0,0.0001726,2]
[367789546,1750931449964,-460.0,0.0001726,2]
[367789548,1750931449974,-944.31,0.0001726,2]
[367789550,1750931449983,-1906.58,0.0001726,2]
[367789552,1750931449992,-563.27,0.0001726,2]
[367789554,1750931450002,-2845.9,0.0001726,2]
[367789556,1750931450011,-460.0,0.0001726,2]
[367789558,1750931450020,-460.0,0.0001726,2]
[367789560,1750931450029,-460.0,0.0001726,2]
[367789562,1750931450039,-460.0,0.0001726,2]
[367789564,1750931450049,-460.0,0.0001726,2]
[367789566,1750931450058,-956.87,0.0001726,2]
[367789568,1750931450068,-460.0,0.0001726,2]
[367789570,1750931450077,-2288.17,0.0001726,2]
[367789572,1750931450086,-460.0,0.0001726,2]
[367789574,1750931450096,-580.79,0.0001726,2]
[367789576,1750931450105,-151.0,0.0001726,2]
[367789577,1750931450114,-460.0,0.0001726,2]
[367789578,1750931450123,-460.0,0.0001726,2]
[367789579,1750931450133,-460.0,0.0001726,2]
[367789580,1750931450141,-1198.56,0.0001726,2]
[367789581,1750931450152,-336.418142,0.0001726,2]
[367789582,1750931450162,-336.418142,0.0001726,2]
[367789583,1750931450171,-460.0,0.0001726,2]
[367789584,1750931450181,-1231.48,0.0001726,2]
[367789585,1750931450190,-460.0,0.0001726,2]
[367789586,1750931450201,-460.0,0.0001726,2]
[367789587,1750931450210,-460.0,0.0001726,2]
[367789588,1750931450219,-318.94682449,0.0001726,2]
[367789589,1750931450232,-194.646327,0.0001726,2]
[367789590,1750931450242,-460.0,0.0001726,2]
[367789591,1750931450251,-194.646327,0.0001726,2]
[367789592,1750931450260,-1166.94,0.0001726,2]
[367789593,1750931450270,-883.45,0.0001726,2]
[367789594,1750931450279,-460.0,0.0001726,2]
[367789595,1750931450288,-912.34,0.0001726,2]
[367789596,1750931450297,-460.0,0.0001726,2]
[367789597,1750931450306,-773.09,0.0001726,2]
[367789598,1750931450316,-151.0,0.0001726,2]
[367789599,1750931450325,-460.0,0.0001726,2]
[367789601,1750931450334,-151.0,0.0001726,2]
[367789603,1750931450343,-460.0,0.0001726,2]
[367789605,1750931450352,-460.0,0.0001726,2]
[367789607,1750931450362,-460.0,0.0001726,2]
[367789609,1750931450371,-460.0,0.0001726,2]
[367789611,1750931450381,-468.83658299,0.0001726,2]
[367789613,1750931450391,-460.0,0.0001726,2]
[367789615,1750931450400,-460.0,0.0001726,2]
[367789617,1750931450409,-460.0,0.0001726,2]
[367789619,1750931450418,-460.0,0.0001726,2]
[367789621,1750931450428,-460.0,0.0001726,2]
[367789623,1750931450437,-460.0,0.0001726,2]
[367789625,1750931450446,-460.0,0.0001726,2]
[367789626,1750931450455,-460.0,0.0001726,2]
[367789628,1750931450465,-460.0,0.0001726,2]
[367789630,1750931450474,-2940.97,0.0001726,2]
[367789632,1750931450483,-1025.01,0.0001726,2]
[367789634,1750931450493,-460.0,0.0001726,2]
[367789636,1750931450503,-838.22,0.0001726,2]
[367789638,1750931450513,-460.0,0.0001726,2]
[367789640,1750931450523,-460.0,0.0001726,2]
[367789642,1750931450532,-460.0,0.0001726,2]
[367789644,1750931450541,-460.0,0.0001726,2]
[367789646,1750931450551,-152.36191,0.0001726,2]
[367789648,1750931450560,-460.0,0.0001726,2]
[367789650,1750931450569,-460.0,0.0001726,2]
[367789652,1750931450578,-460.0,0.0001726,2]
[367789654,1750931450587,-460.0,0.0001726,2]
[367789656,1750931450597,-460.0,0.0001726,2]
[367789658,1750931450607,-151.0,0.0001726,2]
[367789660,1750931450616,-234.95442889,0.0001726,2]
[367789662,1750931450625,-500.5167576,0.00017273,2]
[367789664,1750931450635,-500.0,0.00017273,2]
[367789666,1750931450644,-2550.87992384,0.00017452,2]
[367789668,1750931450654,-500.0,0.00017463,2]
[367789670,1750931450663,-500.0,0.00017463,2]
[367789672,1750931450672,-500.0,0.00017463,2]
[367789674,1750931450681,-500.0,0.00017463,2]
[367789676,1750931450690,-500.0,0.0001748,2]
[367789678,1750931450700,-500.30344921,0.0001748,2]
[367789680,1750931450710,-500.0,0.0001748,2]
[367789682,1750931450719,-500.84850324,0.0001748,2]
[367789684,1750931450728,-500.0,0.0001748,2]
[367789686,1750931450737,-500.0,0.0001748,2]
[367789688,1750931450747,-500.0,0.0001748,2]
[367789690,1750931450756,-501.20861726,0.0001748,2]
[367789692,1750931450765,-500.0,0.0001748,2]
[367789694,1750931450776,-500.22618135,0.0001748,2]
[367789696,1750931450785,-500.41457115,0.0001748,2]
[367789698,1750931450794,-500.0,0.00017486,2]
[367789700,1750931450803,-1303.99,0.00017503,2]
[367789702,1750931450812,-460.0,0.00017504,2]
[367789704,1750931450821,-500.0,0.00017512,2]
[367789706,1750931450831,-166.22610356,0.00017512,2]
[367789708,1750931450840,-500.19571875,0.00017512,2]
[367789710,1750931450849,-500.0,0.00017512,2]
[367789712,1750931450858,-500.0,0.00017512,2]
[367789714,1750931450867,-501.8969566,0.00017512,2]
[367789716,1750931450877,-179.84230171,0.00017512,2]
[367789718,1750931450887,-1303.99,0.00017533,2]
[367789720,1750931450896,-460.0,0.00017534,2]
[367789722,1750931450906,-565.80000629,0.00017534,2]
[367789724,1750931450915,-1666.97,0.00017534,2]
[367789726,1750931450924,-460.0,0.00017534,2]
[367789728,1750931450934,-460.0,0.00017534,2]
[367789730,1750931450943,-460.0,0.00017534,2]
[367789732,1750931450952,-208.54323682,0.00017534,2]
[367789734,1750931450961,-460.0,0.00017534,2]
[367789736,1750931450970,-250.206453,0.00017534,2]
[367789738,1750931450979,-460.0,0.00017534,2]
[367789740,1750931450987,-151.0,0.00017534,2]
[367789742,1750931450997,-253.69260426,0.00017534,2]
[367789744,1750931451006,-151.0,0.00017534,2]
[367789746,1750931451015,-460.0,0.00017534,2]
[367789748,1750931451024,-460.0,0.00017534,2]
[367789750,1750931451033,-571.76,0.00017534,2]
[367789751,1750931451042,-460.0,0.00017534,2]
[367789753,1750931451051,-151.0,0.00017534,2]
[367789755,1750931451061,-460.0,0.00017534,2]
[367789757,1750931451071,-460.0,0.00017534,2]
[367789760,1750931451080,-460.0,0.00017534,2]
[367789761,1750931451090,-460.0,0.00017534,2]
[367789763,1750931451099,-460.0,0.00017534,2]
[367789765,1750931451109,-151.0,0.00017534,2]
[367789767,1750931451118,-151.435267,0.00017534,2]
[367789769,1750931451128,-460.0,0.00017534,2]
[367789771,1750931451136,-460.0,0.00017534,2]
[367789773,1750931451146,-294.877351,0.00017534,2]
[367789775,1750931451158,-294.877351,0.00017534,2]
[367789777,1750931451168,-151.0,0.00017534,2]
[367789779,1750931451177,-460.0,0.00017534,2]
[367789781,1750931451187,-460.0,0.00017534,2]
[367789783,1750931451197,-151.0,0.00017534,2]
[367789785,1750931451207,-460.0,0.00017534,2]
[367789787,1750931451216,-151.0,0.00017534,2]
[367789789,1750931451226,-849.82,0.00017534,2]
[367789790,1750931451236,-460.0,0.00017534,2]
[367789792,1750931451245,-460.0,0.00017534,2]
[367789794,1750931451254,-460.0,0.00017534,2]
[367789796,1750931451263,-460.0,0.00017534,2]
[367789798,1750931451272,-460.0,0.00017534,2]
[367789800,1750931451281,-460.0,0.00017534,2]
[367789802,1750931451291,-563.72,0.00017534,2]
[367789804,1750931451299,-460.0,0.00017534,2]
[367789806,1750931451310,-460.0,0.00017534,2]
[367789808,1750931451319,-151.0,0.00017534,2]
[367789810,1750931451328,-460.0,0.00017534,2]
[367789812,1750931451337,-460.0,0.00017534,2]
[367789814,1750931451346,-200.09,0.00017534,2]
[367789816,1750931451356,-1141.75,0.00017534,2]
[367789818,1750931451365,-176.214753,0.00017534,2]
[367789820,1750931451374,-460.0,0.00017534,2]
[367789822,1750931451383,-176.214753,0.00017534,2]
[367789824,1750931451392,-460.0,0.00017534,2]
[367789825,1750931451405,-460.0,0.00017534,2]
[367789827,1750931451414,-460.0,0.00017534,2]
[367789829,1750931451423,-460.0,0.00017534,2]
[367789831,1750931451433,-460.0,0.00017534,2]
[367789833,1750931451442,-460.0,0.00017534,2]
[367789835,1750931451451,-460.0,0.00017534,2]
[367789837,1750931451460,-460.0,0.00017534,2]
[367789839,1750931451469,-460.0,0.00017534,2]
[367789841,1750931451479,-801.14,0.00017534,2]
[367789842,1750931451490,-460.0,0.00017534,2]
[367789844,1750931451499,-492.26,0.00017534,2]
[367789846,1750931451509,-460.0,0.00017534,2]
[367789848,1750931451518,-460.0,0.00017534,2]
[367789850,1750931451527,-460.0,0.00017534,2]
[367789852,1750931451536,-460.0,0.00017534,2]
[367789854,1750931451546,-460.0,0.00017534,2]
[367789856,1750931451555,-1366.28,0.00017534,2]
[367789858,1750931451564,-1780.45,0.00017534,2]
[367789860,1750931451574,-460.0,0.00017534,2]
[367789862,1750931451583,-460.0,0.00017534,2]
[367789864,1750931451592,-460.0,0.00017534,2]
[367789866,1750931451602,-460.0,0.00017534,2]
[367789868,1750931451611,-460.0,0.00017534,2]
[367789870,1750931451620,-460.0,0.00017534,2]
[367789872,1750931451629,-587.64,0.00017534,2]
[367789874,1750931451638,-460.0,0.00017534,2]
[367789876,1750931451647,-460.0,0.00017534,2]
[367789878,1750931451656,-460.0,0.00017534,2]
[367789880,1750931451665,-460.0,0.00017534,2]
[367789882,1750931451675,-460.0,0.00017534,2]
[367789884,1750931451684,-460.0,0.00017534,2]
[367789885,1750931451694,-460.0,0.00017534,2]
[367789887,1750931451703,-460.0,0.00017534,2]
[367789889,1750931451712,-739.92,0.00017534,2]
[367789891,1750931451721,-460.0,0.00017534,2]
[367789893,1750931451730,-460.0,0.00017534,2]
[367789895,1750931451740,-460.0,0.00017534,2]
[367789897,1750931451749,-463.56,0.00017534,2]
[367789899,1750931451758,-460.0,0.00017534,2]
[367789901,1750931451767,-404.07326253,0.00017534,2]
[367789903,1750931451777,-460.0,0.00017534,2]
[367789905,1750931451786,-460.0,0.00017534,2]
[367789907,1750931451795,-460.0,0.00017534,2]
[367789909,1750931451804,-460.0,0.00017534,2]
[367789911,1750931451814,-944.31,0.00017534,2]
[367789923,1750931451924,-1906.58,0.00017534,2]
[367789926,1750931451935,-563.27,0.00017534,2]
[367789927,1750931451944,-2845.9,0.00017534,2]
[367789929,1750931451954,-460.0,0.00017534,2]
[367789930,1750931451963,-452.58,0.00017534,2]
[367789932,1750931451973,-460.0,0.00017534,2]
[367789934,1750931451983,-460.0,0.00017534,2]
[367789936,1750931451992,-956.87,0.00017534,2]
[367789938,1750931452002,-460.0,0.00017534,2]
[367789940,1750931452011,-460.0,0.00017534,2]
[367789942,1750931452021,-2288.17,0.00017534,2]
[367789944,1750931452030,-151.0,0.00017534,2]
[367789946,1750931452039,-460.0,0.00017534,2]
[367789948,1750931452048,-580.79,0.00017534,2]
[367789950,1750931452057,-247.690984,0.00017534,2]
[367789951,1750931452067,-151.0,0.00017534,2]
[367789953,1750931452076,-460.0,0.00017534,2]
[367789955,1750931452086,-460.0,0.00017534,2]
[367789957,1750931452095,-460.0,0.00017534,2]
[367789959,1750931452104,-1198.56,0.00017534,2]
[367789961,1750931452114,-336.418142,0.00017534,2]
[367789963,1750931452123,-336.418142,0.00017534,2]
[367789965,1750931452133,-460.0,0.00017534,2]
[367789967,1750931452141,-1231.48,0.00017534,2]
[367789969,1750931452152,-460.0,0.00017534,2]
[367789971,1750931452163,-460.0,0.00017534,2]
[367789972,1750931452172,-460.0,0.00017534,2]
[367789974,1750931452181,-194.646327,0.00017534,2]
[367789976,1750931452190,-460.0,0.00017534,2]
[367789978,1750931452200,-194.646327,0.00017534,2]
[367789980,1750931452209,-1166.94,0.00017534,2]
[367789982,1750931452218,-883.45,0.00017534,2]
[367789984,1750931452228,-376.48588425,0.00017534,2]
[367789986,1750931452239,-912.34,0.00017534,2]